fUSD/lending_fUSD_20240109
["ID","MTS","AMOUNT","RATE_DAILY","PERIOD"]
[310987838,1704841851938,-500.0,0.00041095,30]
[310987839,1704841851948,-500.0,0.00041095,30]
[310987840,1704841851959,-582.6,0.00041095,30]
[310987841,1704841851969,-500.0,0.00041095,30]
[310987842,1704841851980,-500.0,0.00041095,30]
[310987843,1704841851989,-500.0,0.00041095,30]
[310987844,1704841852000,-500.0,0.00041095,7]
[310987845,1704841852011,-923.47,0.00041095,30]
[310987846,1704841852022,-836.73,0.00041095,30]
[310987847,1704841852036,-500.0,0.00041095,30]
[310987848,1704841852047,-500.0,0.00041095,30]
[310987849,1704841852058,-500.0,0.00041095,30]
[310987850,1704841852069,-500.0,0.00041095,2]
[310987851,1704841852079,-500.0,0.00041095,30]
[310987852,1704841852089,-500.0,0.00041095,30]
[310987853,1704841852099,-500.0,0.00041095,30]
[310987854,1704841852109,-1252.73,0.00041095,30]
[310987855,1704841852119,-500.0,0.00041095,30]
[310987856,1704841852129,-500.0,0.00041095,30]
[310987857,1704841852139,-500.0,0.00041095,30]
[310987858,1704841852149,-500.0,0.00041095,30]
[310987859,1704841852160,-500.0,0.00041095,30]
[310987860,1704841852170,-500.0,0.00041095,30]
[310987861,1704841852180,-449.56819245,0.00041095,30]
[310987862,1704841852191,-1077.64,0.00041095,30]
[310987863,1704841852201,-500.0,0.00041095,30]
[310987864,1704841852211,-500.0,0.00041095,30]
[310987865,1704841852221,-500.0,0.00041095,30]
[310987866,1704841852232,-500.0,0.00041095,30]
[310987867,1704841852242,-500.0,0.00041095,30]
[310987868,1704841852253,-500.0,0.00041095,30]
[310987869,1704841852264,-380.19403641,0.00041095,30]
[310987870,1704841852275,-1297.06,0.00041095,30]
[310987871,1704841852288,-1460.87,0.00041095,30]
[310987872,1704841852298,-436.16,0.00041095,30]
[310987873,1704841852309,-910.46,0.00041095,30]
[310987874,1704841852319,-500.0,0.00041095,30]
[310987875,1704841852330,-1078.43,0.00041095,30]
[310987876,1704841852341,-500.0,0.00041095,30]
[310987877,1704841852352,-586.69564798,0.00041095,30]
[310987878,1704841852363,-500.0,0.00041095,30]
[310987879,1704841852373,-799.82,0.00041095,30]
[310987880,1704841852384,-500.0,0.00041095,30]
[310987881,1704841852394,-500.0,0.00041095,30]
[310987882,1704841852405,-500.0,0.00041095,30]
[310987883,1704841852416,-829.78,0.00041095,30]
[310987884,1704841852425,-500.0,0.00041095,30]
[310987885,1704841852435,-500.0,0.00041095,30]
[310987886,1704841852445,-500.0,0.00041095,30]
[310987887,1704841852454,-500.0,0.00041095,30]
[310987888,1704841852464,-864.85,0.00041095,30]
[310987889,1704841852474,-679.28,0.00041095,30]
[310987890,1704841852484,-500.0,0.00041095,30]
[310987891,1704841852495,-500.0,0.00041095,30]
[310987892,1704841852506,-500.0,0.00041095,30]
[310987893,1704841852515,-500.0,0.00041095,30]
[310987894,1704841852525,-1337.85,0.00041095,30]
[310987895,1704841852537,-1022.05,0.00041095,30]
[310987896,1704841852547,-500.0,0.00041095,30]
[310987897,1704841852557,-500.0,0.00041095,30]
[310987898,1704841852567,-500.0,0.00041095,30]
[310987899,1704841852577,-500.0,0.00041095,30]
[310987900,1704841852587,-1601.5,0.00041095,30]
[310987901,1704841852596,-500.0,0.00041095,30]
[310987902,1704841852606,-500.0,0.00041095,30]
[310987903,1704841852616,-439.70846525,0.00041095,30]
[310987904,1704841852626,-500.0,0.00041095,30]
[310987905,1704841852636,-500.0,0.00041095,30]
[310987906,1704841852646,-2280.6,0.00041095,30]
[310987907,1704841852655,-500.0,0.00041095,30]
[310987908,1704841852666,-500.0,0.00041095,30]
[310987909,1704841852676,-672.84,0.00041095,30]
[310987910,1704841852686,-500.0,0.00041095,30]
[310987911,1704841852697,-500.0,0.00041095,30]
[310987912,1704841852707,-500.0,0.00041095,30]
[310987913,1704841852718,-500.0,0.00041095,30]
[310987914,1704841852728,-500.0,0.00041095,30]
[310987915,1704841852738,-777.56,0.00041095,30]
[310987916,1704841852749,-500.0,0.00041095,30]
[310987917,1704841852759,-500.0,0.00041095,30]
[310987918,1704841852770,-500.0,0.00041095,30]
[310987919,1704841852780,-1633.49,0.00041095,30]
[310987920,1704841852791,-500.0,0.00041095,30]
[310987921,1704841852801,-500.0,0.00041095,30]
[310987922,1704841852810,-500.0,0.00041095,30]
[310987923,1704841852819,-500.0,0.00041095,30]
[310987924,1704841852828,-500.0,0.00041095,30]
[310987925,1704841852837,-500.0,0.00041095,30]
[310987926,1704841852847,-153.37980483,0.00041095,30]
[310987927,1704841852857,-762.17,0.00041095,30]
[310987928,1704841852868,-500.0,0.00041095,30]
[310987929,1704841852878,-500.0,0.00041095,30]
[310987930,1704841852889,-574.53,0.00041095,30]
[310987931,1704841852900,-500.0,0.00041095,30]
[310987932,1704841852910,-683.47,0.00041095,30]
[310987933,1704841852920,-500.0,0.00041095,30]
[310987934,1704841852930,-500.0,0.00041095,30]
[310987935,1704841852940,-500.0,0.00041095,30]
[310987936,1704841852950,-500.0,0.00041095,30]
[310987937,1704841852961,-500.0,0.00041095,30]
[310987938,1704841852973,-500.0,0.00041095,30]
[310987939,1704841852983,-500.0,0.00041095,30]
[310987940,1704841852994,-1160.59,0.00041095,30]
[310987941,1704841853005,-500.0,0.00041095,30]
[310987942,1704841853016,-500.0,0.00041095,30]
[310987943,1704841853026,-500.0,0.00041095,30]
[310987944,1704841853039,-500.0,0.00041095,10]
[310987945,1704841853050,-500.0,0.00041095,30]
[310987946,1704841853061,-1149.42,0.00041095,30]
[310987947,1704841853071,-732.2,0.00041095,30]
[310987948,1704841853081,-500.0,0.00041095,30]
[310987949,1704841853090,-500.0,0.00041095,30]
[310987950,1704841853100,-500.0,0.00041095,30]
[310987951,1704841853110,-500.0,0.00041095,30]
[310987952,1704841853119,-594.11,0.00041095,30]
[310987953,1704841853128,-861.51,0.00041095,30]
[310987954,1704841853138,-1696.32,0.00041095,30]
[310987955,1704841853147,-500.0,0.00041095,30]
[310987956,1704841853156,-1328.46,0.00041095,30]
[310987957,1704841853165,-500.0,0.00041095,30]
[310987958,1704841853175,-500.0,0.00041095,30]
[310987959,1704841853186,-500.0,0.00041095,30]
[310987960,1704841853196,-500.0,0.00041095,30]
[310987961,1704841853206,-644.29560238,0.00041095,30]
[310987962,1704841853217,-500.0,0.00041095,30]
[310987963,1704841853227,-590.89,0.00041095,30]
[310987964,1704841853237,-591.41,0.00041095,30]
[310987965,1704841853344,-1418.52,0.00041095,30]
[310987966,1704841853353,-500.0,0.00041095,30]
[310987967,1704841853362,-500.0,0.00041095,30]
[310987968,1704841853372,-500.0,0.00041095,30]
[310987969,1704841853382,-1013.76,0.00041095,30]
[310987970,1704841853391,-500.0,0.00041095,30]
[310987971,1704841853401,-500.0,0.00041095,30]
[310987972,1704841853410,-500.0,0.00041095,30]
[310987973,1704841853419,-500.0,0.00041095,30]
[310987974,1704841853429,-1158.62,0.00041095,30]
[310987975,1704841853438,-500.0,0.00041095,30]
[310987976,1704841853448,-500.0,0.00041095,30]
[310987977,1704841853458,-917.25,0.00041095,30]
[310987978,1704841853467,-500.0,0.00041095,2]
[310987979,1704841853477,-500.0,0.00041095,30]
[310987980,1704841853486,-500.0,0.00041095,30]
[310987981,1704841853496,-501.24,0.00041095,30]
[310987982,1704841853505,-2421.56,0.00041095,30]
[310987983,1704841853514,-500.0,0.00041095,30]
[310987984,1704841853524,-500.0,0.00041095,30]
[310987985,1704841853535,-1069.61,0.00041095,30]
[310987986,1704841853544,-500.0,0.00041095,30]
[310987987,1704841853554,-988.11,0.00041095,6]
[310987988,1704841853563,-500.0,0.00041095,30]
[310987989,1704841853573,-509.80312169,0.00041095,30]
[310987990,1704841853583,-500.0,0.00041095,30]
[310987991,1704841853593,-500.0,0.00041095,30]
[310987992,1704841853603,-500.0,0.00041095,30]
[310987993,1704841853612,-500.0,0.00041095,30]
[310987994,1704841853621,-500.0,0.00041095,30]
[310987995,1704841853630,-500.0,0.00041095,30]
[310987996,1704841853639,-1228.99,0.00041095,30]
[310987997,1704841853649,-1218.23,0.00041095,30]
[310987998,1704841853658,-500.0,0.00041095,30]
[310987999,1704841853667,-1553.66,0.00041095,30]
[310988000,1704841853676,-869.4,0.00041095,30]
[310988001,1704841853685,-500.0,0.00041095,30]
[310988002,1704841853694,-500.0,0.00041095,30]
[310988003,1704841853704,-500.0,0.00041095,30]
[310988004,1704841853713,-500.0,0.00041095,30]
[310988005,1704841853723,-500.0,0.00041095,30]
[310988006,1704841853732,-500.0,0.00041095,30]
[310988007,1704841853743,-500.0,0.00041095,30]
[310988008,1704841853753,-500.0,0.00041095,30]
[310988009,1704841853764,-991.14,0.00041095,30]
[310988010,1704841853775,-500.0,0.00041095,30]
[310988011,1704841853786,-500.0,0.00041095,30]
[310988012,1704841853800,-500.0,0.00041095,30]
[310988013,1704841853811,-723.81,0.00041095,30]
[310988014,1704841853821,-935.41,0.00041095,30]
[310988015,1704841853830,-500.0,0.00041095,30]
[310988016,1704841853840,-500.0,0.00041095,30]
[310988017,1704841853851,-1105.22,0.00041095,30]
[310988018,1704841853861,-790.43,0.00041095,30]
[310988019,1704841853872,-706.04,0.00041095,30]
[310988020,1704841853881,-590.78,0.00041095,30]
[310988021,1704841853890,-1422.85,0.00041095,30]
[310988022,1704841853899,-500.0,0.00041095,30]
[310988023,1704841853909,-1314.4,0.00041095,30]
[310988024,1704841853919,-500.0,0.00041095,30]
[310988025,1704841853929,-500.0,0.00041095,30]
[310988026,1704841853939,-628.43,0.00041095,30]
[310988027,1704841853949,-1081.32,0.00041095,30]
[310988028,1704841853959,-1037.84,0.00041095,30]
[310988029,1704841853969,-500.0,0.00041095,30]
[310988030,1704841853979,-500.0,0.00041095,30]
[310988031,1704841853990,-637.46,0.00041095,30]
[310988032,1704841854001,-500.0,0.00041095,30]
[310988033,1704841854011,-500.0,0.00041095,30]
[310988034,1704841854021,-500.0,0.00041095,30]
[310988035,1704841854032,-1114.3,0.00041095,30]
[310988036,1704841854042,-500.0,0.00041095,30]
[310988037,1704841854052,-500.0,0.00041095,30]
[310988038,1704841854063,-506.39643504,0.00041095,30]
[310988039,1704841854075,-500.0,0.00041095,30]
[310988040,1704841854087,-500.0,0.00041095,30]
[310988041,1704841854098,-500.0,0.00041095,30]
[310988042,1704841854109,-500.0,0.00041095,30]
[310988043,1704841854119,-500.0,0.00041095,30]
[310988044,1704841854130,-500.0,0.00041095,30]
[310988045,1704841854140,-500.0,0.00041095,30]
[310988046,1704841854151,-717.22,0.00041095,30]
[310988047,1704841854161,-500.0,0.00041095,30]
[310988048,1704841854171,-1343.06,0.00041095,30]
[310988049,1704841854182,-500.0,0.00041095,30]
[310988050,1704841854193,-500.0,0.00041095,30]
[310988051,1704841854203,-584.23257368,0.00041095,30]
[310988052,1704841854214,-967.9,0.00041095,30]
[310988053,1704841854223,-500.0,0.00041095,30]
[310988054,1704841854232,-500.0,0.00041095,30]
[310988055,1704841854241,-500.0,0.00041095,30]
[310988056,1704841854250,-500.0,0.00041095,30]
[310988057,1704841854259,-500.0,0.00041095,30]
[310988058,1704841854269,-1788.41,0.00041095,30]
[310988059,1704841854281,-790.95,0.00041095,30]
[310988060,1704841854290,-500.0,0.00041095,30]
[310988061,1704841854299,-500.0,0.00041095,30]
[310988062,1704841854309,-500.0,0.00041095,30]
[310988063,1704841854318,-500.0,0.00041095,30]
[310988064,1704841854327,-500.0,0.00041095,30]
[310988065,1704841854336,-500.0,0.00041095,30]
[310988066,1704841854346,-1591.61,0.00041095,30]
[310988067,1704841854355,-320.85371867,0.00041095,30]
[310988068,1704841854364,-500.0,0.00041095,30]
[310988069,1704841854373,-500.0,0.00041095,30]
[310988070,1704841854382,-965.7,0.00041095,30]
[310988071,1704841854392,-500.0,0.00041095,30]
[310988072,1704841854402,-1513.81,0.00041095,30]
[310988073,1704841854412,-500.0,0.00041095,30]
[310988074,1704841854423,-500.0,0.00041095,30]
[310988075,1704841854433,-914.46,0.00041095,30]
[310988076,1704841854444,-500.0,0.00041095,30]
[310988077,1704841854454,-500.0,0.00041095,30]
[310988078,1704841854464,-1098.0,0.00041095,30]
[310988079,1704841854474,-500.0,0.00041095,30]
[310988080,1704841854484,-500.0,0.00041095,30]
[310988081,1704841854495,-188.9870841,0.00041095,30]
[310988082,1704841854506,-1493.16,0.00041095,30]
[310988083,1704841854516,-1169.5,0.00041095,30]
[310988084,1704841854526,-500.0,0.00041095,7]
[310988085,1704841854538,-500.0,0.00041095,30]
[310988086,1704841854549,-500.0,0.00041095,30]
[310988087,1704841854561,-500.0,0.00041095,30]
[310988088,1704841854572,-524.17058557,0.00041095,30]
[310988089,1704841854586,-500.0,0.00041095,30]
[310988090,1704841854596,-500.0,0.00041095,30]
[310988091,1704841854607,-1340.49,0.00041095,30]
[310988092,1704841854617,-1228.13,0.00041095,30]
[310988093,1704841854628,-849.87,0.00041095,30]
[310988094,1704841854638,-1000.0,0.00041095,7]
[310988095,1704841854649,-500.0,0.00041095,30]
[310988096,1704841854660,-500.0,0.00041095,30]
[310988097,1704841854670,-500.0,0.00041095,30]
[310988098,1704841854681,-500.0,0.00041095,30]
[310988099,1704841854691,-500.0,0.00041095,30]
[310988100,1704841854701,-973.05,0.00041095,30]
[310988101,1704841854711,-500.0,0.00041095,30]
[310988102,1704841854721,-500.0,0.00041095,30]
[310988103,1704841854731,-500.0,0.00041095,30]
[310988104,1704841854742,-500.0,0.00041095,30]
[310988105,1704841854753,-1835.35,0.00041095,30]
[310988106,1704841854762,-809.95,0.00041095,30]
[310988107,1704841854771,-500.0,0.00041095,30]
[310988108,1704841854780,-500.0,0.00041095,8]
[310988109,1704841854789,-500.0,0.00041095,30]
[310988110,1704841854800,-839.18,0.00041095,30]
[310988111,1704841854809,-500.0,0.00041095,30]
[310988112,1704841854819,-547.63960858,0.00041095,30]
[310988113,1704841854829,-500.0,0.00041095,30]
[310988114,1704841854838,-500.0,0.00041095,30]
[310988115,1704841854848,-1128.93,0.00041095,30]
[310988116,1704841854857,-1277.51,0.00041095,30]
[310988117,1704841854867,-3000.0,0.00041095,120]
[310988118,1704841854877,-500.0,0.00041095,30]
[310988119,1704841854887,-691.06,0.00041095,30]
[310988120,1704841854896,-500.0,0.00041095,30]
[310988121,1704841854907,-500.0,0.00041095,30]
[310988122,1704841854917,-863.85,0.00041095,30]
[310988123,1704841854927,-500.0,0.00041095,30]
[310988124,1704841854938,-301.81003041,0.00041095,30]
[310988125,1704841854947,-500.0,0.00041095,30]
[310988126,1704841854958,-500.0,0.00041095,30]
[310988127,1704841854969,-1022.01,0.00041095,30]
[310988128,1704841854978,-1298.75,0.00041095,30]
[310988129,1704841854989,-646.66,0.00041095,30]
[310988130,1704841854999,-1000.0,0.00041095,34]
[310988131,1704841855009,-500.0,0.00041095,30]
[310988132,1704841855019,-1104.7,0.00041095,30]
[310988133,1704841855029,-500.0,0.00041095,30]
[310988134,1704841855041,-1590.1,0.00041095,30]
[310988135,1704841855051,-500.0,0.00041095,30]
[310988136,1704841855061,-500.0,0.00041095,30]
[310988137,1704841855071,-500.0,0.00041095,30]
[310988138,1704841855082,-500.0,0.00041095,30]
[310988139,1704841855091,-500.0,0.00041095,30]
[310988140,1704841855101,-1393.79,0.00041095,30]
[310988141,1704841855110,-500.0,0.00041095,30]
[310988142,1704841855118,-500.0,0.00041095,30]
[310988143,1704841855128,-500.0,0.00041095,30]
[310988144,1704841855137,-500.0,0.00041095,30]
[310988145,1704841855147,-500.0,0.00041095,30]
[310988146,1704841855157,-801.45,0.00041095,30]
[310988147,1704841855168,-414.62562275,0.00041095,30]
[310988149,1704841855856,-85.37437725,0.00041095,30]
[310988150,1704841855866,-856.85,0.00041095,30]
[310988151,1704841855877,-1314.59,0.00041095,30]
[310988152,1704841855887,-507.91,0.00041095,30]
[310988153,1704841855896,-503.64033252,0.00041095,30]
[310988154,1704841855906,-500.0,0.00041095,30]
[310988155,1704841855916,-500.0,0.00041095,30]
[310988156,1704841855925,-535.69065127,0.00041095,30]
[310988157,1704841855935,-500.0,0.00041095,2]
[310988158,1704841855945,-500.0,0.00041095,30]
[310988159,1704841855954,-1027.33,0.00041095,30]
[310988160,1704841855965,-547.82,0.00041095,30]
[310988161,1704841855975,-588.43763223,0.00041095,30]
[310988162,1704841855985,-1135.17227076,0.00041095,30]
[310988163,1704841855998,-318.46772924,0.00041095,30]
[310988164,1704841856008,-500.0,0.00041095,30]
[310988165,1704841856018,-500.0,0.00041095,30]
[310988166,1704841856027,-500.0,0.00041095,30]
[310988167,1704841856038,-500.0,0.00041095,30]
[310988168,1704841856047,-500.0,0.00041095,30]
[310988169,1704841856057,-500.0,0.00041095,30]
[310988170,1704841856066,-500.0,0.00041095,30]
[310988171,1704841856076,-500.0,0.00041095,30]
[310988172,1704841856085,-617.77,0.00041095,30]
[310988173,1704841856095,-571.56,0.00041095,30]
[310988174,1704841856104,-500.0,0.00041095,30]
[310988175,1704841856114,-1000.0,0.00041095,7]
[310988176,1704841856124,-728.41,0.00041095,30]
[310988177,1704841856133,-500.0,0.00041095,30]
[310988178,1704841856142,-500.0,0.00041095,30]
[310988179,1704841856152,-500.0,0.00041095,30]
[310988180,1704841856161,-500.0,0.00041095,30]
[310988181,1704841856170,-500.0,0.00041095,30]
[310988182,1704841856180,-1088.12,0.00041095,30]
[310988183,1704841856190,-576.26,0.00041095,30]
[310988184,1704841856199,-1044.01,0.00041095,30]
[310988185,1704841856209,-525.54,0.00041095,30]
[310988186,1704841856219,-593.64,0.00041095,30]
[310988187,1704841856228,-615.96,0.00041095,30]
[310988188,1704841856238,-1338.41,0.00041095,30]
[310988189,1704841856247,-514.41077152,0.00041095,30]
[310988190,1704841856257,-500.0,0.00041095,30]
[310988191,1704841856267,-500.0,0.00041095,30]
[310988192,1704841856277,-500.0,0.00041095,30]
[310988193,1704841856287,-500.0,0.00041095,30]
[310988194,1704841856297,-500.0,0.00041095,30]
[310988195,1704841856307,-500.0,0.00041095,30]
[310988196,1704841856316,-500.0,0.00041095,30]
[310988197,1704841856326,-982.5,0.00041095,30]
[310988198,1704841856335,-603.67,0.00041095,30]
[310988199,1704841856347,-500.0,0.00041095,30]
[310988200,1704841856357,-500.0,0.00041095,30]
[310988201,1704841856366,-1296.96,0.00041095,30]
[310988202,1704841856376,-1312.84,0.00041095,30]
[310988203,1704841856385,-500.0,0.00041095,30]
[310988204,1704841856395,-649.92199924,0.00041095,30]
[310988205,1704841856410,-541.54800076,0.00041095,30]
[310988206,1704841856419,-390.45199924,0.00041095,30]
[310988207,1704841856431,-109.54800076,0.00041095,30]
[310988208,1704841856441,-500.0,0.00041095,30]
[310988209,1704841856451,-101.78642294,0.00041095,30]
[310988210,1704841856463,-398.21357706,0.00041095,30]
[310988211,1704841856473,-500.0,0.00041095,30]
[310988212,1704841856483,-1743.86,0.00041095,30]
[310988213,1704841856493,-500.0,0.00041095,30]
[310988214,1704841856503,-500.0,0.00041095,30]
[310988215,1704841856513,-500.0,0.00041095,30]
[310988216,1704841856522,-500.0,0.00041095,30]
[310988217,1704841856532,-325.88728909,0.00041095,30]
[310988218,1704841856546,-1303.88271091,0.00041095,30]
[310988219,1704841856555,-500.0,0.00041095,30]
[310988220,1704841856565,-821.21,0.00041095,30]
[310988221,1704841856575,-500.0,0.00041095,30]
[310988222,1704841856584,-500.0,0.00041095,30]
[310988223,1704841856594,-642.59507117,0.00041095,30]
[310988224,1704841856604,-500.0,0.00041095,30]
[310988225,1704841856614,-622.43,0.00041095,30]
[310988226,1704841856624,-1369.59,0.00041095,30]
[310988227,1704841856633,-541.2,0.00041095,30]
[310988228,1704841856643,-818.71,0.00041095,30]
[310988229,1704841856653,-749.13,0.00041095,30]
[310988230,1704841856662,-500.0,0.00041095,30]
[310988231,1704841856671,-134.15573495,0.00041095,30]
[310988232,1704841856683,-484.35426505,0.00041095,30]
[310988233,1704841856693,-500.0,0.00041095,30]
[310988234,1704841856703,-458.2023477,0.00041095,30]
[310988235,1704841856716,-41.7976523,0.00041095,30]
[310988236,1704841856725,-1741.98135304,0.00041095,30]
[310988237,1704841856737,-175.50864696,0.00041095,30]
[310988238,1704841856747,-500.0,0.00041095,30]
[310988239,1704841856757,-636.85,0.00041095,30]
[310988240,1704841856766,-500.0,0.00041095,30]
[310988241,1704841856776,-402.38450143,0.00041095,30]
[310988242,1704841856788,-97.61549857,0.00041095,30]
[310988243,1704841856798,-500.0,0.00041095,30]
[310988244,1704841856807,-500.0,0.00041095,30]
[310988245,1704841856817,-30.59979566,0.00041095,30]
[310988246,1704841856838,-482.697017,0.000379,7]
[310988247,1704841856847,-1023.47020434,0.00041095,30]
[310988248,1704841856857,-500.0,0.00041095,30]
[310988249,1704841856866,-551.2629776,0.00041095,30]
[310988250,1704841856875,-500.0,0.00041095,30]
[310988251,1704841856885,-500.0,0.00041095,30]
[310988252,1704841856894,-500.0,0.00041095,30]
[310988253,1704841856904,-506.93,0.00041095,30]
[310988254,1704841856914,-536.4,0.00041095,30]
[310988255,1704841856923,-1090.74,0.00041095,30]
[310988256,1704841856933,-500.0,0.00041095,30]
[310988257,1704841856942,-342.78923649,0.00041095,30]
[310988258,1704841856952,-500.0,0.00041095,30]
[310988259,1704841856961,-826.73,0.00041095,30]
[310988260,1704841856971,-510.82,0.00041095,7]
[310988261,1704841856980,-500.0,0.00041095,30]
[310988262,1704841856990,-520.36623557,0.00041095,30]
[310988263,1704841856999,-500.0,0.00041095,30]
[310988264,1704841857009,-500.0,0.00041095,30]
[310988265,1704841857018,-272.20449486,0.00041095,30]
[310988266,1704841857028,-1000.0,0.00041095,30]
[310988267,1704841857038,-500.0,0.00041095,30]
[310988268,1704841857048,-1475.51,0.00041095,30]
[310988269,1704841857057,-500.0,0.00041095,30]
[310988270,1704841857066,-500.0,0.00041095,30]
[310988271,1704841857076,-520.83929439,0.00041095,30]
[310988272,1704841857085,-704.63,0.00041095,30]
[310988273,1704841857095,-702.59,0.00041095,30]
[310988274,1704841857108,-500.0,0.00041095,30]
[310988275,1704841857118,-1303.9,0.00041095,30]
[310988276,1704841857128,-500.0,0.00041095,30]
[310988277,1704841857137,-1376.45,0.00041095,30]
[310988278,1704841857147,-1284.98,0.00041095,30]
[310988279,1704841857157,-1064.14,0.00041095,30]
[310988280,1704841857166,-26.41653975,0.00041095,30]
[310988281,1704841858588,-482.697017,0.00039,7]
[310988282,1704841858598,-482.697017,0.0004102,7]
[310988283,1704841858607,-804.59731016,0.00041095,30]
[310988284,1704841858620,-539.57615009,0.00041095,30]
[310988285,1704841858630,-503.44481492,0.00041095,30]
[310988286,1704841858639,-853.73,0.00041095,30]
[310988287,1704841858648,-500.0,0.00041095,30]
[310988288,1704841858657,-500.0,0.00041095,30]
[310988289,1704841858666,-554.43,0.00041095,30]
[310988290,1704841858675,-529.92729964,0.00041095,30]
[310988291,1704841858684,-567.17,0.00041095,30]
[310988292,1704841858694,-500.0,0.00041095,30]
[310988293,1704841858703,-500.0,0.00041095,30]
[310988294,1704841858712,-500.0,0.00041095,30]
[310988295,1704841858721,-618.03674503,0.00041095,30]
[310988296,1704841858730,-500.0,0.00041095,30]
[310988297,1704841858739,-1536.1,0.00041095,30]
[310988298,1704841858748,-1364.85,0.00041095,30]
[310988299,1704841858758,-500.0,0.00041095,7]
[310988300,1704841858768,-500.0,0.00041095,30]
[310988301,1704841858778,-500.0,0.00041095,30]
[310988302,1704841858790,-1592.3,0.00041095,30]
[310988303,1704841858799,-500.0,0.00041095,30]
[310988304,1704841858808,-758.31,0.00041095,30]
[310988305,1704841858817,-700.39,0.00041095,30]
[310988306,1704841858827,-500.0,0.00041095,30]
[310988307,1704841858836,-999.9,0.00041095,30]
[310988308,1704841858846,-716.95,0.00041095,30]
[310988309,1704841858855,-500.0,0.00041095,30]
[310988310,1704841858865,-500.0,0.00041095,30]
[310988311,1704841858874,-500.0,0.00041095,30]
[310988312,1704841858884,-500.0,0.00041095,30]
[310988313,1704841858893,-500.0,0.00041095,30]
[310988314,1704841858903,-570.86036513,0.00041095,30]
[310988315,1704841858912,-890.25,0.00041095,30]
[310988316,1704841858922,-776.94,0.00041095,30]
[310988317,1704841858931,-500.0,0.00041095,30]
[310988318,1704841858940,-500.0,0.00041095,30]
[310988319,1704841858950,-500.0,0.00041095,30]
[310988320,1704841858959,-500.0,0.00041095,30]
[310988321,1704841858968,-1719.49,0.00041095,30]
[310988322,1704841858978,-500.0,0.00041095,30]
[310988323,1704841858988,-658.66,0.00041095,30]
[310988324,1704841858998,-2966.36,0.00041095,30]
[310988325,1704841859007,-1623.94,0.00041095,30]
[310988326,1704841859017,-500.0,0.00041095,30]
[310988327,1704841859027,-500.0,0.00041095,30]
[310988328,1704841859039,-431.19862516,0.00041095,30]
[310988329,1704841859053,-997.10137484,0.00041095,30]
[310988330,1704841859063,-774.71,0.00041095,30]
[310988331,1704841859072,-495.36313251,0.00041095,30]
[310988332,1704841859081,-507.61122121,0.00041095,30]
[310988333,1704841859091,-786.35,0.00041095,30]
[310988334,1704841859100,-1757.46,0.00041095,30]
[310988335,1704841859110,-623.49,0.00041095,30]
[310988336,1704841859119,-500.0,0.00041095,30]
[310988337,1704841859128,-1553.4,0.00041095,30]
[310988338,1704841859137,-500.0,0.00041095,30]